[Event "WYCC 2018 G18"]
[Site "Halkidiki"]
[Date "2018.10.21"]
[Round "3"]
[White "Dimitrova, Aleksandra"]
[Black "Kieu, Bich Thuy"]
[Result "1/2-1/2"]
[ECO "B09"]
[WhiteElo "2228"]
[BlackElo "1913"]
[Annotator "NA"]
[PlyCount "129"]
[EventDate "2018.10.20"]
[EventType "swiss"]
[EventCountry "GRE"]
[SourceTitle "playchess.com"]
[Source "ChessBase"]
[SourceQuality "1"]
[TimeControl "40/5400+30:1800+30"]

1. e4 {[%emt 0:00:00]} g6 {[%emt 0:00:00]} 2. d4 {[%emt 0:00:00]} Bg7 {[%emt 0:00:00]} 3. Nc3 {[%emt 0:00:00]} d6 {[%emt 0:00:00]} 4. f4 {[%emt 0:00:00]} Nf6 {[%emt 0:00:09]} 5. Nf3 {[%emt 0:00:30]} O-O {[%emt 0:00:09]} 6. Bd3 {[%emt 0:00:16]} Na6 {[%emt 0:02:22]} 7. O-O {[%emt 0:03:02]} c5 {[%emt 0:04:18]} 8. d5 {[%emt 0:00:13]} Nc7 {[%emt 0:04:39]} 9. a4 {[%emt 0:01:01]} Bd7 {[%emt 0:03:26] B09: Pirc-Ufimzew-Verteidigung (Dreibauernangriff)} (9... e6 10. dxe6 Bxe6 11. Kh1 b6 12. Qe1 Bg4 13. Bd2 Re8 14. Qg3 Bxf3 15. Qxf3 Ne6 16. Rae1 Nd4 17. Qd1 h5 {½-½ (48) Li,C (2744)-Lu,S (2628) Huocheng County 2017}) 10. Bc4 {[%emt 0:05:23]} a6 {[%emt 0:09:29]} 11. e5 {[%emt 0:07:14]} dxe5 $146 {[%emt 0:02:03]} ({Vorgänger:} 11... Nfe8 12. Qe2 b5 13. axb5 axb5 14. Rxa8 Qxa8 15. e6 fxe6 16. dxe6 Bc6 17. Bxb5 Nxb5 18. Nxb5 {½-½ (47) Fedoseev,V (2264)-Mihajlovskij,S (2492) Kazan 2007}) 12. fxe5 {[%emt 0:01:15]} Ng4 {[%emt 0:01:15]} 13. Bf4 {[%emt 0:02:58]} b5 {[%emt 0:04:53]} 14. Be2 {[%emt 0:04:52]} b4 {[%emt 0:06:00]} 15. Nb1 {[%emt 0:05:28]} e6 {[%emt 0:12:50]} 16. c4 {[%emt 0:14:53]} bxc3 {[%emt 0:01:25]} 17. Nxc3 {[%emt 0:00:04]} exd5 {[%emt 0:01:52]} 18. Nxd5 {[%emt 0:05:42]} Ne6 {[%emt 0:05:29]} 19. Bg3 {[%emt 0:05:48]} Bc6 {[%emt 0:01:53]} 20. Nf4 {[%emt 0:06:16]} Nxf4 {[%emt 0:13:50]} 21. Bxf4 {[%emt 0:00:21]} Qe7 {[%emt 0:01:22]} 22. Qd6 {[%emt 0:17:38]} Qxd6 {[%emt 0:03:29]} 23. exd6 {[%emt 0:00:02]} Bxb2 {[%emt 0:03:21]} 24. Ra2 {[%emt 0:00:33]} Rfb8 {[%emt 0:04:15]} 25. Rd1 {[%emt 0:06:32]} Bd7 {[%emt 0:04:29]} 26. Kf1 {[%emt 0:06:09]} Ra7 {[%emt 0:05:34]} 27. Rb1 {[%emt 0:02:56]} Rab7 {[%emt 0:01:00]} 28. Bxa6 {[%emt 0:00:11]} Rb6 {[%emt 0:00:45]} 29. Bb5 {[%emt 0:00:45]} Bxb5+ {[%emt 0:00:30]} 30. axb5 {[%emt 0:00:01]} Bf6 {[%emt 0:01:47]} 31. d7 {[%emt 0:00:37]} Rxb5 {[%emt 0:02:21]} 32. Rxb5 {[%emt 0:00:13]} Rxb5 {[%emt 0:00:03]} 33. h3 {[%emt 0:02:07]} Rb4 {[%emt 0:00:58]} 34. Bd2 {[%emt 0:00:51]} Rb1+ {[%emt 0:00:18]} 35. Ke2 {[%emt 0:00:14]} Rb7 {[%emt 0:00:23]} 36. Ra8+ {[%emt 0:00:58]} Kg7 {[%emt 0:00:03]} 37. d8=Q {[%emt 0:00:33]} Bxd8 {[%emt 0:00:08]} 38. Rxd8 {[%emt 0:00:06]} Re7+ {[%emt 0:00:14]} 39. Kd3 {[%emt 0:00:53]} Nf2+ {[%emt 0:00:17]} 40. Kc4 {[%emt 0:00:00]} Ne4 {[%emt 0:00:00]} 41. Bf4 {[%emt 0:05:56]} f6 {[%emt 0:02:08]} 42. Bd6 {[%emt 0:06:10]} Nxd6+ {[%emt 0:00:46]} 43. Rxd6 {[%emt 0:00:02]} Re2 {[%emt 0:00:10]} 44. Rd2 {[%emt 0:00:16]} Re4+ {[%emt 0:04:09]} 45. Kxc5 {[%emt 0:00:06]} g5 {[%emt 0:00:10]} 46. Kd5 {[%emt 0:00:48]} Ra4 {[%emt 0:00:18]} 47. Nd4 {[%emt 0:03:49]} Kg6 {[%emt 0:00:31]} 48. Rf2 {[%emt 0:00:43]} h5 {[%emt 0:00:40]} 49. Rc2 {[%emt 0:08:07]} h4 {[%emt 0:02:07]} 50. Ke4 {[%emt 0:00:30]} f5+ {[%emt 0:02:47]} 51. Ke5 {[%emt 0:00:38]} Ra5+ {[%emt 0:00:25]} 52. Ke6 {[%emt 0:00:25]} g4 {[%emt 0:01:43]} 53. Nc6 {[%emt 0:02:22]} Ra3 {[%emt 0:03:41]} 54. Ne5+ {[%emt 0:02:07]} Kg5 {[%emt 0:00:32]} 55. Rf2 {[%emt 0:01:11]} Ra6+ {[%emt 0:00:54]} 56. Kd5 {[%emt 0:00:13]} gxh3 {[%emt 0:03:09]} 57. gxh3 {[%emt 0:00:06]} Ra3 {[%emt 0:00:06]} 58. Rg2+ {[%emt 0:01:59]} Rg3 {[%emt 0:05:35]} 59. Nf3+ {[%emt 0:00:59]} Kf4 {[%emt 0:00:14]} 60. Nxh4 {[%emt 0:00:32]} Rxg2 {[%emt 0:01:00]} 61. Nxg2+ {[%emt 0:00:05]} Kg3 {[%emt 0:00:07]} 62. h4 {[%emt 0:01:10]} Kxg2 $11 {[%emt 0:00:17]} 63. Ke5 {[%emt 0:00:22]} Kg3 {[%emt 0:00:07]} 64. Kxf5 {[%emt 0:00:10]} Kxh4 {[%emt 0:00:05]} 65. Ke4 1/2-1/2

[Event "WYCC 2018 G18"]
[Site "Halkidiki"]
[Date "2018.10.21"]
[Round "3"]
[White "Martynkova, Olena"]
[Black "Dong, Khanh Linh"]
[Result "1-0"]
[ECO "D30"]
[WhiteElo "2188"]
[BlackElo "1879"]
[Annotator "NA"]
[PlyCount "117"]
[EventDate "2018.10.20"]
[EventType "swiss"]
[EventCountry "GRE"]
[SourceTitle "playchess.com"]
[Source "ChessBase"]
[SourceQuality "1"]
[TimeControl "40/5400+30:1800+30"]

1. d4 {[%emt 0:00:00]} d5 {[%emt 0:00:00]} 2. c4 {[%emt 0:00:01]} e6 {[%emt 0:00:40]} 3. Nf3 {[%emt 0:00:23]} Nf6 {[%emt 0:00:43]} 4. g3 {[%emt 0:00:24]} b6 {[%emt 0:02:42]} 5. cxd5 {[%emt 0:01:17]} Nxd5 {[%emt 0:01:49]} 6. Bg2 {[%emt 0:03:05]} Be7 {[%emt 0:02:44]} 7. O-O {[%emt 0:01:56]} O-O {[%emt 0:00:20]} 8. e4 {[%emt 0:01:41]} Nf6 {[%emt 0:01:45]} 9. Nc3 {[%emt 0:01:06]} Bb7 {[%emt 0:02:12] E06: Closed Catalan: Early deviations} 10. Re1 {[%emt 0:01:53]} Na6 {[%emt 0:04:12]} 11. Bf4 {[%emt 0:05:11]} Re8 {[%emt 0:05:53]} 12. Ne5 $146 {[%emt 0:12:29]} ({Predecessor:} 12. Rc1 c5 13. a3 cxd4 14. Nxd4 Bc5 15. Be3 e5 16. Nf5 Bxe3 17. Nxe3 {½-½ (27) Malakhatko,V (2542)-Adly,A (2637) Riadh 2017}) 12... c6 {[%emt 0:11:12]} 13. a3 {[%emt 0:11:01]} Nc7 {[%emt 0:11:19]} 14. Qa4 {[%emt 0:12:02]} b5 {[%emt 0:05:46]} 15. Qa5 {[%emt 0:03:05]} Na6 {[%emt 0:08:33]} 16. Nxc6 {[%emt 0:02:54]} Bxc6 {[%emt 0:17:47]} 17. Qxa6 {[%emt 0:00:09]} Qc8 {[%emt 0:00:30]} 18. Qxc8 {[%emt 0:03:38]} Raxc8 19. d5 {[%emt 0:09:21]} exd5 {[%emt 0:00:39]} 20. exd5 {[%emt 0:01:28]} Bd7 {[%emt 0:00:10]} 21. d6 {[%emt 0:03:08]} Bf8 {[%emt 0:00:07]} 22. h3 {[%emt 0:09:34]} h6 {[%emt 0:07:28]} 23. Rac1 {[%emt 0:07:44]} Nh5 {[%emt 0:05:48]} 24. Be5 {[%emt 0:01:50]} Rc5 {[%emt 0:02:06]} 25. Bd4 {[%emt 0:01:11]} Rcc8 {[%emt 0:03:08]} 26. Bxa7 {[%emt 0:00:55]} Bxd6 {[%emt 0:02:55]} 27. Red1 {[%emt 0:00:27]} Re6 {[%emt 0:00:05]} 28. Bd5 {[%emt 0:01:18]} Rg6 {[%emt 0:02:05]} 29. Be4 {[%emt 0:00:49]} f5 {[%emt 0:00:42]} 30. Bf3 {[%emt 0:01:52]} Nxg3 {[%emt 0:00:20]} 31. fxg3 {[%emt 0:00:27]} Bxg3 {[%emt 0:01:07]} 32. Kh1 {[%emt 0:00:58]} Be8 {[%emt 0:00:37]} 33. Nd5 {[%emt 0:00:04]} Rxc1 {[%emt 0:00:26]} 34. Rxc1 Ra6 {[%emt 0:00:23]} 35. Bb6 {[%emt 0:03:27]} Bf7 {[%emt 0:00:33]} 36. Bc7 Bf2 37. Rc6 {[%emt 0:01:08]} Ra4 {[%emt 0:01:06]} 38. Nc3 {[%emt 0:00:09]} Rd4 {[%emt 0:00:36]} 39. Be5 {[%emt 0:00:52]} Rd2 {[%emt 0:00:11]} 40. Nxb5 {[%emt 0:00:00]} Bd5 {[%emt 0:00:00]} 41. Rc3 {[%emt 0:14:59]} Bb6 {[%emt 0:16:47] [#]} 42. Nd4 $1 {[%emt 0:02:51]} Be4 {[%emt 0:00:01]} 43. Bxe4 {[%emt 0:02:15]} fxe4 {[%emt 0:01:47]} 44. Nf5 Kf7 45. Rc6 {[%emt 0:04:18]} Rd1+ {[%emt 0:04:46]} 46. Kg2 {[%emt 0:00:27]} Rd2+ {[%emt 0:05:42]} 47. Kg3 {[%emt 0:00:34]} Bg1 {[%emt 0:00:11]} 48. Nd6+ {[%emt 0:01:37]} Ke7 {[%emt 0:00:06]} 49. Nxe4 {[%emt 0:01:29]} Re2 {[%emt 0:00:24]} 50. Kf3 {[%emt 0:01:45]} Re3+ {[%emt 0:00:04]} 51. Kf4 {[%emt 0:00:17]} g5+ {[%emt 0:01:53]} 52. Kf5 {[%emt 0:00:05]} Rxh3 {[%emt 0:00:09]} 53. Rc7+ {[%emt 0:00:38]} Kd8 {[%emt 0:00:22]} 54. Ke6 {[%emt 0:00:36]} Rd3 {[%emt 0:01:24]} 55. Rb7 {[%emt 0:00:17]} Ke8 {[%emt 0:00:47]} 56. Rb8+ {[%emt 0:00:24]} Rd8 {[%emt 0:00:04]} 57. Nf6+ {[%emt 0:00:06]} Kf8 {[%emt 0:00:04]} 58. Rxd8+ {[%emt 0:00:06]} Kg7 {[%emt 0:00:02]} 59. Rg8# {[%emt 0:00:07]} 1-0

[Event "WYCC 2018 G18"]
[Site "Halkidiki"]
[Date "2018.10.21"]
[Round "3"]
[White "Radeva, Viktoria"]
[Black "Nemcova, Kamila"]
[Result "1/2-1/2"]
[ECO "B92"]
[WhiteElo "2163"]
[BlackElo "1879"]
[Annotator "ChessBase"]
[PlyCount "118"]
[EventDate "2018.10.20"]
[EventType "swiss"]
[EventCountry "GRE"]
[SourceTitle "playchess.com"]
[Source "ChessBase"]
[SourceQuality "1"]
[TimeControl "40/5400+30:1800+30"]

1. e4 {[%emt 0:00:00]} c5 {[%emt 0:00:00]} 2. Nf3 {[%emt 0:00:00]} d6 {[%emt 0:00:00]} 3. d4 {[%emt 0:00:00]} cxd4 {[%emt 0:00:00]} 4. Nxd4 {[%emt 0:00:00]} Nf6 {[%emt 0:00:00]} 5. Nc3 {[%emt 0:00:00]} a6 {[%emt 0:00:05]} 6. Be2 {[%emt 0:00:00]} e5 {[%emt 0:00:09]} 7. Nb3 {[%emt 0:00:04]} Be7 {[%emt 0:00:26]} 8. O-O {[%emt 0:00:10]} Nbd7 {[%emt 0:09:13]} 9. a4 {[%emt 0:07:00]} b6 {[%emt 0:03:15]} 10. Bf3 {[%emt 0:01:25]} Bb7 {[%emt 0:00:55]} 11. Re1 {[%emt 0:03:00]} O-O {[%emt 0:01:13]} 12. Nd2 {[%emt 0:13:49]} Rc8 {[%emt 0:04:51]} 13. Nf1 {[%emt 0:02:00]} Qc7 {[%emt 0:06:00]} 14. Ng3 {[%emt 0:06:54]} Rfd8 {[%emt 0:06:16]} 15. Bg5 {[%emt 0:07:45]} h6 {[%emt 0:06:40]} 16. Nf5 {[%emt 0:08:41]} Bf8 {[%emt 0:01:46]} 17. Bh4 {[%emt 0:02:10]} g5 {[%emt 0:13:13]} 18. Bg3 {[%emt 0:00:38]} Nc5 {[%emt 0:00:57]} 19. h4 {[%emt 0:04:25]} Ne6 {[%emt 0:03:16]} 20. hxg5 {[%emt 0:00:39]} hxg5 {[%emt 0:01:17]} 21. Qd2 {[%emt 0:10:15]} Qc4 {[%emt 0:04:01]} 22. Rad1 {[%emt 0:08:20]} Qb4 {[%emt 0:03:50]} 23. Qc1 {[%emt 0:03:05]} Qc5 {[%emt 0:06:15]} 24. Ne3 {[%emt 0:05:24]} Nd4 {[%emt 0:05:53]} 25. Ned5 {[%emt 0:02:53]} Nxf3+ {[%emt 0:06:20]} 26. gxf3 {[%emt 0:00:04]} Nh7 {[%emt 0:00:17]} 27. Kg2 {[%emt 0:01:58]} b5 {[%emt 0:01:59]} 28. axb5 {[%emt 0:00:13]} axb5 {[%emt 0:00:02]} 29. Rh1 {[%emt 0:02:58]} f6 {[%emt 0:05:53]} 30. Rh5 {[%emt 0:10:01]} b4 {[%emt 0:04:42]} 31. Rdh1 {[%emt 0:00:34]} bxc3 {[%emt 0:00:42]} 32. Rxh7 {[%emt 0:00:54]} Bxd5 {[%emt 0:00:32]} 33. exd5 {[%emt 0:00:32]} Qxd5 {[%emt 0:01:24]} 34. Qe3 {[%emt 0:00:25]} g4 {[%emt 0:02:50]} 35. Qa7 {[%emt 0:00:30]} Qxf3+ {[%emt 0:01:00]} 36. Kg1 {[%emt 0:00:35]} Qd1+ {[%emt 0:00:16]} 37. Kh2 {[%emt 0:00:21]} Qd5 {[%emt 0:00:15]} 38. Kg1 {[%emt 0:00:26]} Qd1+ {[%emt 0:00:08]} 39. Kh2 {[%emt 0:00:04]} Qd5 {[%emt 0:00:08]} 40. Kg1 {[%emt 0:00:00]} Qd1+ {[%emt 0:00:00]} 41. Kg2 {[%emt 0:01:03]} Qf3+ {[%emt 0:00:24]} 42. Kh2 {[%emt 0:00:10]} Qd5 {[%emt 0:00:08]} 43. Rd1 {[%emt 0:12:33]} Qe6 {[%emt 0:02:17]} 44. Rh1 {[%emt 0:10:21]} f5 {[%emt 0:05:59]} 45. Kg1 {[%emt 0:01:24]} Rd7 {[%emt 0:08:13]} 46. Qxd7 {[%emt 0:02:25]} Qxd7 {[%emt 0:00:54]} 47. Rxd7 {[%emt 0:00:06]} cxb2 {[%emt 0:00:18]} 48. Kg2 {[%emt 0:01:46]} Rxc2 {[%emt 0:02:04]} 49. Rb1 {[%emt 0:00:45]} f4 {[%emt 0:00:27]} 50. Bh4 {[%emt 0:00:59]} g3 {[%emt 0:01:38]} 51. Bxg3 {[%emt 0:02:49]} fxg3 {[%emt 0:00:08]} 52. Kxg3 {[%emt 0:00:08]} Bh6 {[%emt 0:03:16]} 53. Rxd6 {[%emt 0:00:55]} Rc3+ {[%emt 0:00:49]} 54. Kg2 {[%emt 0:00:37]} Bc1 {[%emt 0:00:23]} 55. Rb6 {[%emt 0:01:14]} Rc2 {[%emt 0:04:28]} 56. Kf3 {[%emt 0:00:29]} Kf7 {[%emt 0:02:07]} 57. Ke4 {[%emt 0:00:34]} Re2+ {[%emt 0:00:33]} 58. Kf3 {[%emt 0:00:08]} Rc2 {[%emt 0:00:54]} 59. Ke4 {[%emt 0:00:21]} Re2+ {[%emt 0:00:57]} 1/2-1/2

[Event "WYCC 2018 G18"]
[Site "Halkidiki"]
[Date "2018.10.21"]
[Round "3"]
[White "Rozman, Monika"]
[Black "Avramidou, Anastasia"]
[Result "1/2-1/2"]
[ECO "B15"]
[WhiteElo "2141"]
[BlackElo "2285"]
[Annotator "NA"]
[PlyCount "86"]
[EventDate "2018.10.20"]
[EventType "swiss"]
[EventCountry "GRE"]
[SourceTitle "playchess.com"]
[Source "ChessBase"]
[SourceQuality "1"]
[TimeControl "40/5400+30:1800+30"]

1. e4 {[%emt 0:00:00]} c6 {[%emt 0:00:00]} 2. d4 {[%emt 0:00:00]} d5 {[%emt 0:00:00]} 3. Nc3 {[%emt 0:00:00]} dxe4 {[%emt 0:00:00]} 4. Nxe4 {[%emt 0:00:00]} Nf6 {[%emt 0:00:00]} 5. Nxf6+ {[%emt 0:01:15]} exf6 {[%emt 0:00:07]} 6. Nf3 {[%emt 0:00:28]} Bd6 {[%emt 0:00:08]} 7. Bd3 {[%emt 0:04:47]} O-O {[%emt 0:01:34]} 8. O-O {[%emt 0:00:08]} Bg4 {[%emt 0:03:09]} 9. b3 {[%emt 0:14:15]} Re8 {[%emt 0:15:37]} 10. c3 {[%emt 0:02:35]} Nd7 $11 {[%emt 0:03:30]} 11. Bc2 {[%emt 0:03:13]} Qa5 {[%emt 0:11:15]} 12. h3 {[%emt 0:07:16]} Bh5 {[%emt 0:01:05]} 13. Bb2 {[%emt 0:07:23]} Nf8 {[%emt 0:07:50]} 14. Qd3 {[%emt 0:05:30]} Rad8 {[%emt 0:01:20]} 15. b4 {[%emt 0:04:01]} Qb6 {[%emt 0:06:12]} 16. Rab1 {[%emt 0:03:48]} Bb8 {[%emt 0:00:55]} 17. Rbe1 {[%emt 0:10:13]} Qc7 {[%emt 0:00:22]} 18. g3 {[%emt 0:00:21]} Qd7 {[%emt 0:01:27]} 19. Kg2 {[%emt 0:02:42]} Qd5 {[%emt 0:16:37]} 20. Bb3 {[%emt 0:01:43]} Qd6 {[%emt 0:00:05]} 21. Bc1 {[%emt 0:02:37]} Bg6 {[%emt 0:01:57]} 22. Qd1 {[%emt 0:03:05]} Qd7 {[%emt 0:05:04]} 23. Bc2 {[%emt 0:02:28]} f5 {[%emt 0:01:52]} 24. Rxe8 {[%emt 0:10:15]} Rxe8 {[%emt 0:00:07]} 25. Re1 {[%emt 0:00:03]} Ne6 {[%emt 0:07:58]} 26. Bb3 {[%emt 0:03:47]} f4 {[%emt 0:00:05]} 27. Ne5 {[%emt 0:00:21]} Bxe5 {[%emt 0:00:36]} 28. Rxe5 {[%emt 0:00:09]} fxg3 {[%emt 0:00:12]} 29. fxg3 {[%emt 0:00:06]} Nc7 {[%emt 0:01:50]} 30. Qe2 {[%emt 0:05:22]} Bf5 {[%emt 0:02:22]} 31. Rxe8+ {[%emt 0:03:33]} Nxe8 {[%emt 0:00:10]} 32. g4 {[%emt 0:00:01]} Be6 {[%emt 0:00:11]} 33. Bxe6 {[%emt 0:00:17]} fxe6 {[%emt 0:00:33]} 34. Bf4 {[%emt 0:01:13]} Qd5+ {[%emt 0:00:57]} 35. Kh2 {[%emt 0:01:20]} Nf6 {[%emt 0:02:59]} 36. c4 Qe4 {[%emt 0:00:24]} 37. Qxe4 {[%emt 0:00:49]} Nxe4 {[%emt 0:00:05]} 38. Kg2 {[%emt 0:00:28]} b5 {[%emt 0:04:17]} 39. Kf3 {[%emt 0:02:24]} Nc3 40. cxb5 {[%emt 0:00:00]} cxb5 {[%emt 0:00:00]} 41. Bd2 {[%emt 0:02:50]} Nd5 {[%emt 0:03:14]} 42. Ke4 {[%emt 0:01:34]} Kf7 {[%emt 0:00:04]} 43. Ke5 {[%emt 0:04:36]} Ke7 {[%emt 0:00:06]} 1/2-1/2

[Event "WYCC 2018 G18"]
[Site "Halkidiki"]
[Date "2018.10.21"]
[Round "3"]
[White "Egyed, Judit"]
[Black "Jie, Tianhui"]
[Result "1-0"]
[ECO "C70"]
[WhiteElo "2089"]
[BlackElo "1849"]
[Annotator "NA"]
[PlyCount "111"]
[EventDate "2018.10.20"]
[EventType "swiss"]
[EventCountry "GRE"]
[SourceTitle "playchess.com"]
[Source "ChessBase"]
[SourceQuality "1"]
[TimeControl "40/5400+30:1800+30"]

1. e4 e5 2. Nf3 Nc6 3. Bb5 a6 4. Ba4 b5 5. Bb3 Na5 6. O-O d6 7. h3 {C70: Ruy Lopez: 3...a6 4 Ba4, Norwegian and Delayed Schliemann} (7. d4 exd4 8. Nxd4 Bb7 9. a4 c5 10. Qf3 Nf6 11. Nf5 g6 12. Nh6 Nxb3 13. Qxb3 Qd7 14. axb5 axb5 15. Rxa8+ Bxa8 16. Re1 Bxh6 17. Bxh6 {1-0 (35) Wang,H (2709)-Vallejo Pons,F (2707) Riadh 2017}) 7... Nxb3 8. axb3 c5 9. d3 Nf6 10. Nc3 Bb7 11. Qe2 $146 ({Predecessor:} 11. Re1 Be7 12. Bd2 O-O 13. Ne2 Nh5 14. g4 Nf6 15. Ng3 g6 16. Bh6 Re8 17. Qd2 Nd7 18. Kh2 Bf6 19. Rg1 d5 20. Qe3 Qe7 {0-1 (43) Gluckman,P (1923)-Duong,Y (1948) Poprad 2016}) 11... h6 12. Nh2 Be7 13. f4 O-O 14. f5 b4 15. Nd1 d5 16. Nf2 dxe4 17. dxe4 Qb6 18. Nhg4 Nd7 19. Be3 Rad8 20. Qf3 Bg5 21. Bxg5 hxg5 22. Ne3 $16 Nf6 23. Nc4 Qc7 24. Rae1 Ne8 25. Qg3 f6 26. h4 gxh4 27. Qxh4 Nd6 28. Re3 Nxc4 29. bxc4 Kf7 30. Qg4 Rg8 31. Rd1 Rd4 32. c3 bxc3 33. bxc3 Rxd1+ 34. Qxd1 Ke7 35. Rg3 Bc6 36. Qh5 Be8 37. Qh7 Kf8 38. Ng4 Qf7 39. Ne3 a5 40. Kf2 a4 41. Qh1 Qd7 42. Nd5 Qb7 43. Qc1 Rh8 44. Qa3 Qc6 45. Qb2 Rh4 46. Ke3 Rh1 47. Qb8 Re1+ 48. Kf3 Qd7 49. Qb6 Qc6 50. Qa7 Bd7 51. Qb8+ Be8 52. Rh3 Kf7 53. Rh8 Qd7 54. Qb6 Qc6 55. Qa7+ Qd7 56. Kg3 1-0

[Event "WYCC 2018 G18"]
[Site "Halkidiki"]
[Date "2018.10.21"]
[Round "3"]
[White "Limanovska, Elizabete"]
[Black "Cosme Contreras, Trilce"]
[Result "1-0"]
[ECO "B90"]
[WhiteElo "2072"]
[BlackElo "1829"]
[Annotator "NA"]
[PlyCount "87"]
[EventDate "2018.10.20"]
[EventType "swiss"]
[EventCountry "GRE"]
[SourceTitle "playchess.com"]
[Source "ChessBase"]
[SourceQuality "1"]
[TimeControl "40/5400+30:1800+30"]

1. e4 {[%emt 0:00:00]} c5 {[%emt 0:07:22]} 2. Nf3 {[%emt 0:00:00]} d6 {[%emt 0:00:19]} 3. d4 {[%emt 0:00:00]} cxd4 {[%emt 0:00:29]} 4. Nxd4 {[%emt 0:00:00]} Nf6 {[%emt 0:00:07]} 5. Nc3 {[%emt 0:00:03]} a6 {[%emt 0:00:03]} 6. Be3 {[%emt 0:00:04]} e6 {[%emt 0:00:05]} 7. f3 {[%emt 0:00:22]} b5 {[%emt 0:00:45]} 8. a3 {[%emt 0:00:15]} Be7 {[%emt 0:01:30]} 9. Qe2 {[%emt 0:05:50]} Bb7 {[%emt 0:04:47]} 10. g4 {[%emt 0:03:32]} h6 {[%emt 0:00:59]} 11. O-O-O {[%emt 0:05:57]} Nc6 {[%emt 0:06:33]} 12. h4 {[%emt 0:06:05]} Qa5 {[%emt 0:10:03]} 13. Nb3 {[%emt 0:04:00]} Qc7 {[%emt 0:01:55]} 14. Bh3 {[%emt 0:03:52]} Ne5 {[%emt 0:11:13]} 15. g5 {[%emt 0:04:05]} Nh5 {[%emt 0:04:45]} 16. Qf2 {[%emt 0:12:37]} Nc4 {[%emt 0:08:21]} 17. g6 {[%emt 0:03:20]} Bf6 {[%emt 0:04:56]} 18. gxf7+ {[%emt 0:02:00]} Qxf7 {[%emt 0:06:54]} 19. Nd4 {[%emt 0:06:53]} Bxd4 {[%emt 0:01:34]} 20. Bxd4 {[%emt 0:01:58]} Rf8 {[%emt 0:04:12]} 21. Bg4 {[%emt 0:10:00]} Nf4 {[%emt 0:04:10]} 22. h5 {[%emt 0:04:49]} e5 {[%emt 0:06:35]} 23. Be3 {[%emt 0:02:34]} Bc8 {[%emt 0:01:13]} 24. b3 {[%emt 0:12:02]} Bxg4 {[%emt 0:02:56]} 25. fxg4 {[%emt 0:00:40]} Nxe3 {[%emt 0:07:21]} 26. Qxe3 {[%emt 0:00:05]} Qc7 {[%emt 0:00:29]} 27. Kb2 {[%emt 0:01:04]} Rc8 {[%emt 0:00:32]} 28. Rh2 {[%emt 0:01:04]} Rf6 {[%emt 0:02:03]} 29. Rhd2 {[%emt 0:00:41]} Rd8 {[%emt 0:01:27]} 30. g5 {[%emt 0:03:30]} hxg5 {[%emt 0:00:26]} 31. Rg1 {[%emt 0:00:12]} Qf7 {[%emt 0:00:44]} 32. Rxg5 {[%emt 0:00:53]} Ne6 {[%emt 0:00:33]} 33. Rg3 {[%emt 0:00:35]} Qxh5 {[%emt 0:00:32]} 34. Qb6 {[%emt 0:03:14]} Qh4 {[%emt 0:00:29]} 35. Rdg2 g5 {[%emt 0:00:21]} 36. Qxa6 {[%emt 0:02:26]} Nd4 {[%emt 0:00:42]} 37. Rxg5 {[%emt 0:00:28]} Rf7 {[%emt 0:00:28]} 38. Rg8+ {[%emt 0:00:41]} Rf8 {[%emt 0:00:23]} 39. Nxb5 {[%emt 0:00:57]} Qf6 {[%emt 0:00:39]} 40. Nc7+ {[%emt 0:00:00]} Kd7 {[%emt 0:00:00]} 41. Nd5 {[%emt 0:01:59]} Qh4 {[%emt 0:09:01]} 42. Qb7+ {[%emt 0:00:24]} Ke8 {[%emt 0:01:35]} 43. Rxf8+ {[%emt 0:00:16]} Kxf8 {[%emt 0:00:09]} 44. Qg7+ {[%emt 0:00:04]} 1-0

[Event "WYCC 2018 G18"]
[Site "Halkidiki"]
[Date "2018.10.21"]
[Round "3"]
[White "Redondo Benavente, Ana"]
[Black "Hrescak, Ivana"]
[Result "1-0"]
[ECO "B52"]
[WhiteElo "2055"]
[BlackElo "2173"]
[Annotator "NA"]
[PlyCount "101"]
[EventDate "2018.10.20"]
[EventType "swiss"]
[EventCountry "GRE"]
[SourceTitle "playchess.com"]
[Source "ChessBase"]
[SourceQuality "1"]
[TimeControl "40/5400+30:1800+30"]

1. e4 {[%emt 0:00:00]} c5 {[%emt 0:00:00]} 2. Nf3 {[%emt 0:00:00]} d6 {[%emt 0:00:00]} 3. Bb5+ {[%emt 0:00:25]} Bd7 {[%emt 0:00:11]} 4. Bxd7+ {[%emt 0:00:18]} Qxd7 {[%emt 0:00:23]} 5. c4 {[%emt 0:00:14]} Nf6 {[%emt 0:02:16]} 6. Nc3 {[%emt 0:00:21]} g6 {[%emt 0:01:00]} 7. d4 {[%emt 0:01:07]} cxd4 {[%emt 0:00:16]} 8. Nxd4 {[%emt 0:00:08]} Bg7 {[%emt 0:00:09]} 9. f3 {[%emt 0:00:27]} O-O {[%emt 0:00:36]} 10. Be3 {[%emt 0:00:25]} Rc8 {[%emt 0:03:50]} 11. b3 {[%emt 0:01:28]} a6 {[%emt 0:03:48]} 12. Qd3 {[%emt 0:03:15]} Nc6 {[%emt 0:03:23]} 13. O-O {[%emt 0:01:19]} Ne5 {[%emt 0:04:15]} 14. Qe2 {[%emt 0:02:27]} b5 {[%emt 0:02:52]} 15. Nd5 {[%emt 0:00:59]} Rab8 {[%emt 0:07:33]} 16. cxb5 {[%emt 0:06:39]} axb5 {[%emt 0:07:46]} 17. Rac1 {[%emt 0:04:12]} Rc5 $14 {[%emt 0:11:18]} 18. Nc3 {[%emt 0:13:05]} b4 {[%emt 0:07:51]} 19. Na4 {[%emt 0:00:18]} Rxc1 {[%emt 0:04:31]} 20. Rxc1 {[%emt 0:00:01]} Qb7 {[%emt 0:02:20]} 21. Qc2 {[%emt 0:06:12]} d5 {[%emt 0:05:56]} 22. Bf4 {[%emt 0:14:41]} Nfd7 {[%emt 0:04:15]} 23. Ne2 {[%emt 0:10:56]} Qa7+ {[%emt 0:09:52]} 24. Kh1 {[%emt 0:00:46]} d4 {[%emt 0:00:56]} 25. Qd2 {[%emt 0:08:59]} d3 {[%emt 0:02:53]} 26. Be3 {[%emt 0:00:04]} Qa6 {[%emt 0:00:55]} 27. Nd4 {[%emt 0:03:07]} Nb6 {[%emt 0:09:23]} 28. Qxb4 {[%emt 0:04:49]} d2 {[%emt 0:00:05]} 29. Rd1 {[%emt 0:02:30]} Nd3 {[%emt 0:04:55]} 30. Qxd2 {[%emt 0:01:45]} Nxa4 {[%emt 0:00:04]} 31. Qxd3 {[%emt 0:01:04]} Qxd3 {[%emt 0:00:08]} 32. Rxd3 {[%emt 0:00:01]} Nc5 {[%emt 0:00:16]} 33. Nc6 {[%emt 0:03:44]} Nxd3 {[%emt 0:00:32]} 34. Nxb8 {[%emt 0:00:01]} Nb4 {[%emt 0:00:38]} 35. a4 {[%emt 0:01:11]} Be5 {[%emt 0:00:50]} 36. Nd7 {[%emt 0:00:28]} Bd6 {[%emt 0:00:42]} 37. Bc5 {[%emt 0:01:40]} Bxc5 {[%emt 0:01:00]} 38. Nxc5 {[%emt 0:00:02]} Kf8 {[%emt 0:00:26]} 39. a5 {[%emt 0:03:10]} Nc6 {[%emt 0:00:17]} 40. a6 {[%emt 0:00:00]} e6 {[%emt 0:00:00]} 41. b4 {[%emt 0:03:23]} Na7 {[%emt 0:01:16]} 42. Kg1 {[%emt 0:05:41]} Ke7 {[%emt 0:00:27]} 43. Kf2 {[%emt 0:01:12]} Kd6 {[%emt 0:00:30]} 44. Ke3 {[%emt 0:00:16]} Kc6 {[%emt 0:00:16]} 45. Kd4 {[%emt 0:00:08]} Kb5 {[%emt 0:00:13]} 46. Ke5 {[%emt 0:09:03]} Kxb4 {[%emt 0:00:13]} 47. Nb7 {[%emt 0:00:15]} Kb5 {[%emt 0:01:37]} 48. Nd6+ {[%emt 0:00:33]} Kxa6 {[%emt 0:00:05]} 49. Nxf7 {[%emt 0:00:01]} Nc6+ {[%emt 0:00:06]} 50. Kxe6 {[%emt 0:00:04]} Nd4+ {[%emt 0:00:05]} 51. Kd7 {[%emt 0:00:23]} 1-0